bitfinex-derivatives/quotes_SOLF0:USTF0_20251101
["timestamp","ask_amount","ask_price","bid_price","bid_amount"]
[1761967113703,2.89,187.08,187.05,2.7]
[1761967113908,2.89,187.18,187.06,6.80078543]
[1761967114110,2.89,187.18,187.07,4.10078543]
[1761967114410,2.89,187.18,187.08,4.10078543]
[1761967114611,2.89,187.18,187.09,4.10078543]
[1761967114808,2.89,187.18,187.06,2.7]
[1761967115111,2.89,187.18,187.07,6.79748242]
[1761967115307,2.89,187.16,187.08,4.09748242]
[1761967115511,2.89,187.14,187.09,4.09748242]
[1761967115710,2.89,187.12,187.07,2.7]
[1761967116014,7.23109523,187.11,187.08,6.80150696]
[1761967116209,4.34109523,187.1,187.09,4.10150696]
[1761967117008,4.34109523,187.1,187.09,6.80150696]
[1761967117204,2.89,187.16,187.1,2.7]
[1761967117404,2.89,187.16,187.11,4.10150696]
[1761967117705,2.89,187.16,187.12,4.10150696]
[1761967118009,2.89,187.16,187.1,2.7]
[1761967118208,2.89,187.16,187.11,4.09338927]
[1761967118407,2.89,187.16,187.08,2.7]
[1761967118714,2.89,187.16,187.09,4.09410982]
[1761967118913,2.89,187.16,187.1,4.09410982]
[1761967119113,2.89,187.16,187.11,4.09410982]
[1761967119304,2.89,187.16,187.08,2.7]
[1761967119504,2.89,187.16,187.09,4.15186854]
[1761967119803,2.89,187.16,187.1,4.15186854]
[1761967120003,2.89,187.16,187.08,2.7]
[1761967120209,2.89,187.16,187.09,4.15120392]
[1761967120409,2.89,187.16,187.05,7.63636013]
[1761967120606,2.89,187.16,187.06,4.1516839]
[1761967120809,2.89,187.16,187.07,4.1516839]
[1761967121012,2.89,187.16,187.08,4.1516839]
[1761967121314,2.89,187.13,187.03,7.63636013]
[1761967121505,2.89,187.13,187.04,6.85312431]
[1761967121700,2.89,187.13,187.05,4.15312431]
[1761967122000,2.89,187.13,187.06,4.15312431]
[1761967122309,2.89,187.13,187.07,4.15312431]
[1761967122511,2.89,187.13,187.08,4.15312431]
[1761967122711,2.89,187.13,187.04,2.7]
[1761967123006,2.89,187.13,187.05,6.85277501]
[1761967123213,2.89,187.13,187.07,2.7]
[1761967123413,2.89,187.11,187.08,6.85277501]
[1761967123614,4.37333433,187.1,187.08,2.7]
[1761967123909,4.37333433,187.09,187.08,2.7]
[1761967124105,0.26239167,187.1,187.09,2.7]
[1761967124316,2.89,187.16,187.1,2.7]
[1761967124506,2.89,187.16,187.12,2.7]
[1761967129118,1.81053154,187.2,187.12,2.7]
[1761967129119,7.03326599,187.15,187.12,2.7]
[1761967129417,4.30326599,187.14,187.12,2.7]
[1761967132926,7.03326599,187.14,187.11,2.75]
[1761967133112,2.73,187.14,187.11,2.75]
[1761967133414,2.73,187.14,187.09,2.75]
[1761967133719,2.73,187.14,187.1,6.89137574]
[1761967134025,2.73,187.14,187.1,2.75]
[1761967135211,2.73,187.21,187.1,2.75]
[1761967135415,4.29830991,187.2,187.14,2.75]
[1761967135624,2.73,187.25,187.17,2.75]
[1761967135816,4.29684891,187.24,187.17,2.75]
[1761967136419,4.24219562,187.23,187.2,2.75]
[1761967136617,4.29684891,187.22,187.2,2.75]
[1761967137014,2.73,187.24,187.2,2.75]
[1761967137319,8.53497785,187.23,187.22,2.75]
[1761967137516,2.73,187.27,187.22,2.75]
[1761967137716,8.53099858,187.26,187.22,2.75]
[1761967137916,2.73,187.27,187.22,2.75]
[1761967137917,8.53099858,187.25,187.22,2.75]
[1761967138116,2.73,187.27,187.22,2.75]
[1761967138318,11.25575863,187.26,187.22,2.75]
[1761967138517,11.25575863,187.25,187.22,2.75]
[1761967138720,2.73,187.24,187.22,2.75]
[1761967140717,2.73,187.24,187.2,2.75]
[1761967140918,1.81053154,187.27,187.12,11.39441351]
[1761967140919,11.25322384,187.23,187.17,4.56053154]
[1761967141116,2.73,187.26,187.19,1.81053154]
[1761967141318,4.23453252,187.25,187.2,2.75]
[1761967141518,4.54053154,187.29,187.2,2.75]
[1761967141712,2.73,187.33,187.21,4.12322345]
[1761967142024,2.73,187.23,187.17,2.75]
[1761967142316,2.73,187.21,187.17,2.75]
[1761967143219,1.81053154,187.18,187.14,4.12646825]
[1761967143423,2.73,187.17,187.09,7.63676322]
[1761967143624,2.73,187.17,187.1,4.12894227]
[1761967143816,2.73,187.17,187.11,4.12894227]
[1761967144013,1.81053154,187.16,187.12,4.12894227]
[1761967144220,2.73,187.14,187.1,6.88229791]
[1761967144423,2.73,187.14,187.1,2.75]
[1761967144827,1.81053154,187.12,187.06,2.75]
[1761967145021,2.73,187.11,187.07,6.88386601]
[1761967145224,2.73,187.11,187.08,6.88386601]
[1761967145428,2.73,187.11,187.08,2.75]
[1761967146127,2.73,187.11,187.04,2.75]
[1761967146428,2.73,187.11,187.06,2.75]
[1761967146727,2.73,187.11,187.08,2.75]
[1761967147626,4.54053154,187.13,187.08,2.75]
[1761967147823,2.73,187.11,187.08,2.75]
[1761967148123,8.5458234,187.1,187.08,2.75]
[1761967148322,2.73,187.11,187.08,2.75]
[1761967148529,4.24936176,187.1,187.08,2.75]
[1761967149430,2.73,187.11,187.09,4.14717391]
[1761967149623,2.73,187.11,187.08,2.75]
[1761967149624,2.73,187.11,187.1,4.14717391]
[1761967150023,2.73,187.11,187.08,2.75]
[1761967150024,7.03054924,187.11,187.08,2.75]
[1761967150229,2.73,187.11,187.09,4.14718431]
[1761967150431,2.73,187.11,187.1,4.14737155]
[1761967150623,6.98083068,187.11,187.1,4.14737155]
[1761967151223,11.28243135,187.11,187.1,4.14737155]
[1761967152118,11.28243135,187.11,187.08,2.75]
[1761967152328,2.73,187.11,187.09,4.14912487]
[1761967152541,2.73,187.11,187.08,2.75]
[1761967152729,2.73,187.11,187.09,4.14912903]
[1761967153040,8.55537064,187.1,187.08,2.75]
[1761967153233,2.73,187.11,187.09,4.14977008]
[1761967153528,2.73,187.11,187.1,4.14977008]
[1761967154229,4.30332193,187.11,187.1,6.89977008]
[1761967154526,9.97272316,187.31,187.11,2.75]
[1761967154734,2.73,187.21,187.13,2.75]
[1761967154922,2.73,187.19,187.14,4.14977008]
[1761967155128,2.73,187.17,187.1,4.56053154]
[1761967155334,2.73,187.15,187.11,6.89964091]
[1761967155541,4.30394152,187.14,187.12,4.14964091]
[1761967155746,4.30394152,187.14,187.13,6.89964091]
[1761967155934,2.68,187.16,187.13,6.89964091]
[1761967156136,4.30433835,187.15,187.14,4.14964091]
[1761967157139,4.30433835,187.15,187.14,7.06964091]
[1761967157334,6.98433835,187.19,187.14,4.14964091]
[1761967157633,4.30433835,187.18,187.12,1.81053154]
[1761967157830,4.30433835,187.17,187.13,2.92]
[1761967158042,2.68,187.22,187.13,2.92]
[1761967158344,6.98763103,187.21,187.14,7.07086395]
[1761967158540,4.30763103,187.2,187.14,2.92]
[1761967158745,6.98763103,187.19,187.14,2.92]
[1761967159043,4.30763103,187.18,187.15,7.07176191]
[1761967159345,4.30763103,187.18,187.16,4.15161601]
[1761967159553,4.30763103,187.18,187.17,4.15161601]
[1761967159937,4.30763103,187.18,187.17,6.92161601]
[1761967161438,4.30763103,187.19,187.17,6.92161601]
[1761967161646,4.30763103,187.18,187.17,2.77]
[1761967161837,4.30763103,187.18,187.17,6.9212929]
[1761967162147,2.66,187.18,187.17,4.1512929]
[1761967162336,2.66,187.17,187.13,2.77]
[1761967162645,4.30763103,187.16,187.14,6.92149682]
[1761967162849,4.30763103,187.16,187.15,4.15149682]
[1761967163145,6.96763103,187.16,187.15,4.15149682]
[1761967163339,6.96763103,187.16,187.12,2.77]
[1761967163539,4.30763103,187.15,187.13,4.15286794]
[1761967163841,4.30763103,187.15,187.12,2.77]
[1761967163842,6.96763103,187.15,187.12,2.77]
[1761967164046,4.30763103,187.14,187.13,4.1528721]
[1761967164249,4.30763103,187.14,187.13,6.9228721]
[1761967164550,2.66,187.23,187.14,2.77]
[1761967164753,2.66,187.21,187.18,2.77]
[1761967164950,4.3086147,187.2,187.18,2.77]
[1761967165142,4.3086147,187.19,187.18,2.77]
[1761967165449,4.3086147,187.2,187.18,6.91962324]
[1761967165748,4.3086147,187.19,187.18,2.77]
[1761967166051,4.3086147,187.19,187.18,6.91857797]
[1761967166349,4.3086147,187.2,187.18,6.91857797]
[1761967166541,2.91,187.24,187.19,6.88857797]
[1761967166742,7.21787453,187.23,187.2,4.14857797]
[1761967166937,4.30787453,187.22,187.19,4.55053154]
[1761967167143,4.30787453,187.21,187.19,1e-08]
[1761967167354,4.30787453,187.2,187.19,1e-08]
[1761967167545,2.91,187.3,187.19,1e-08]
[1761967167749,7.21686884,187.29,187.25,1.81053154]
[1761967168046,4.30686884,187.28,187.25,1.81053154]
[1761967168246,4.30686884,187.27,187.25,1.81053154]
[1761967168451,4.30686884,187.26,187.25,1.81053154]
[1761967168950,2.91,187.29,187.25,1.81053154]
[1761967169151,4.30517728,187.28,187.25,4.55053154]
[1761967170051,7.21517728,187.28,187.25,4.55053154]
[1761967170257,4.30517728,187.27,187.25,4.55053154]
[1761967171353,7.21517728,187.27,187.25,1.81053154]
[1761967171554,4.30517728,187.26,187.25,1.81053154]
[1761967171852,7.21517728,187.26,187.23,1.81053154]
[1761967172153,2.91,187.26,187.23,4.55053154]
[1761967172450,76.68,187.41,187.25,1.81053154]
[1761967172451,2.91,187.31,187.25,1.81053154]
[1761967172648,2.91,187.29,187.27,1.81053154]
[1761967172844,4.29868957,187.28,187.27,1.81053154]
[1761967173351,2.91,187.29,187.27,1.81053154]
[1761967173755,4.29686967,187.28,187.27,1.81053154]
[1761967174250,7.20686967,187.28,187.27,1.81053154]
[1761967174952,2.91,187.27,187.25,1.81053154]
[1761967175257,2.91,187.27,187.23,1.81053154]
[1761967175453,2.91,187.27,187.25,1.81053154]
[1761967176140,2.91,187.27,187.23,4.55053154]
[1761967176345,2.91,187.27,187.23,1.81053154]
[1761967176755,2.91,187.27,187.23,4.55053154]
[1761967176949,2.91,187.32,187.27,2.74]
[1761967177156,2.91,187.3,187.27,2.74]
[1761967177457,2.91,187.3,187.28,1.81053154]
[1761967178258,2.91,187.37,187.28,1.81053154]
[1761967178457,2.91,187.35,187.28,1.81053154]
[1761967178655,2.91,187.33,187.28,1.81053154]
[1761967178859,2.91,187.31,187.28,1.81053154]
[1761967179358,2.91,187.31,187.26,1.81053154]
[1761967179556,7.20066057,187.3,187.26,4.55053154]
[1761967179755,4.29098217,187.29,187.26,4.55053154]
[1761967180561,2.91,187.3,187.26,4.55053154]
[1761967180956,2.91,187.3,187.27,1.81053154]
[1761967183760,245.0,187.63,187.28,2.74]
[1761967183950,245.0,187.63,187.31,1.81053154]
[1761967183951,2.91,187.36,187.31,1.81053154]
[1761967184148,4.28722152,187.35,187.33,1.81053154]
[1761967184357,2.91,187.36,187.32,2.74]
[1761967184550,4.28479772,187.35,187.33,1.81053154]
[1761967184756,2.91,187.4,187.35,2.74]
[1761967184959,2.91,187.4,187.34,1.81053154]
[1761967184960,4.28417888,187.39,187.38,2.74]
[1761967185155,7.19417888,187.43,187.38,2.74]
[1761967185455,7.19417888,187.42,187.38,2.74]
[1761967185660,4.28417888,187.41,187.38,2.74]
[1761967185851,4.28417888,187.41,187.39,1.81053154]
[1761967187465,4.28417888,187.41,187.38,2.74]
[1761967188267,2.83,187.4,187.34,2.8]
[1761967188959,2.83,187.49,187.34,2.8]
[1761967189157,2.83,187.47,187.34,2.8]
[1761967189351,7.32,187.5,187.34,2.8]
[1761967189352,2.83,187.45,187.34,2.8]
[1761967189558,2.83,187.43,187.34,2.8]
[1761967189758,2.83,187.41,187.34,2.8]
[1761967192264,4.27004049,187.4,187.31,2.8]
[1761967192563,2.83,187.39,187.31,2.8]
[1761967192769,4.27004049,187.38,187.31,2.8]
[1761967193663,2.83,187.39,187.31,2.8]
[1761967194972,2.83,187.39,187.32,2.8]
[1761967195566,2.83,187.39,187.3,4.12451368]
[1761967195757,2.83,187.37,187.29,2.8]
[1761967195956,2.83,187.35,187.29,2.8]
[1761967196768,2.83,187.35,187.27,2.8]
[1761967197063,2.83,187.35,187.28,4.12815253]
[1761967197254,2.83,187.35,187.27,2.8]
[1761967197454,2.83,187.33,187.27,2.8]
[1761967197959,2.83,187.33,187.23,4.86420763]
[1761967198161,2.83,187.33,187.25,2.8]
[1761967198463,2.83,187.33,187.26,4.1312712]
[1761967198763,2.83,187.33,187.27,4.1312712]
[1761967198962,2.83,187.33,187.28,4.1312712]
[1761967199167,2.83,187.33,187.25,2.8]
[1761967199370,2.83,187.33,187.26,4.13687741]
[1761967199668,2.83,187.31,187.27,4.13687741]
[1761967199870,2.83,187.31,187.28,4.13687741]
[1761967200066,2.83,187.31,187.25,2.8]
[1761967200371,2.83,187.31,187.26,6.9366424]
[1761967200568,2.68,187.4,187.28,2.8]
[1761967200569,2.83,187.39,187.28,2.8]
[1761967200773,2.83,187.37,187.29,4.1366424]
[1761967200969,2.83,187.35,187.28,2.8]
[1761967201173,4.28248845,187.34,187.3,2.8]
[1761967201372,4.28248845,187.33,187.3,2.8]
[1761967201769,7.11248845,187.33,187.25,4.86420763]
[1761967202071,2.83,187.33,187.26,6.93869305]
[1761967202373,2.83,187.31,187.27,6.93869305]
[1761967202575,2.83,187.31,187.28,4.13869305]
[1761967202777,2.83,187.31,187.29,4.13869305]
[1761967203079,2.83,187.42,187.27,2.8]
[1761967203375,2.83,187.4,187.28,4.13969715]
[1761967203675,17.02,187.44,187.29,4.13969715]
[1761967203676,2.83,187.38,187.29,4.13969715]
[1761967203881,2.83,187.36,187.24,7.66420763]
[1761967204175,35.22,187.51,187.24,7.66420763]
[1761967204176,4.2866229,187.35,187.28,2.8]
[1761967204376,4.2866229,187.34,187.3,2.8]
[1761967204683,2.83,187.32,187.24,2.8]
[1761967204974,7.1166229,187.31,187.25,4.14270257]
[1761967205179,2.83,187.29,187.26,4.14270257]
[1761967205374,2.83,187.27,187.2,4.86420763]
[1761967205574,2.83,187.25,187.21,4.14575911]
[1761967205770,7.12145016,187.24,187.22,4.14575911]
[1761967205979,2.83,187.27,187.23,4.14688226]
[1761967206276,7.12141762,187.26,187.24,4.14779195]
[1761967206471,4.29141762,187.25,187.2,2.8]
[1761967206674,7.12141762,187.25,187.21,6.94800889]
[1761967206877,2.83,187.29,187.23,2.8]
[1761967207078,7.12268518,187.28,187.24,4.14800889]
[1761967207379,7.1241264,187.27,187.25,4.14800889]
[1761967207582,4.2941264,187.26,187.22,2.8]
[1761967207874,7.1241264,187.26,187.23,4.14803318]
[1761967208074,2.83,187.26,187.24,4.14803318]
[1761967208278,2.83,187.26,187.25,4.14803318]
[1761967208576,4.29649405,187.26,187.25,6.94803318]
[1761967208876,2.83,187.28,187.25,4.14803318]
[1761967209076,4.29649405,187.27,187.21,7.66420763]
[1761967209273,4.29649405,187.26,187.23,2.8]
[1761967209472,4.29649405,187.26,187.24,4.14715149]
[1761967209671,7.12649405,187.26,187.25,4.14715149]
[1761967209873,4.29649405,187.26,187.25,6.94715149]
[1761967210078,7.12649405,187.29,187.25,6.94715149]
[1761967210376,4.29649405,187.28,187.26,4.14715149]
[1761967210576,4.29649405,187.27,187.25,2.8]
[1761967210772,2.83,187.29,187.26,4.15198002]
[1761967210971,4.30134541,187.28,187.25,2.8]
[1761967211173,4.30134541,187.27,187.26,4.15131468]
[1761967211680,7.13134541,187.27,187.26,4.15131468]
[1761967214974,4.30134541,187.27,187.26,4.15131468]
[1761967215484,2.83,187.28,187.22,2.8]
[1761967215787,4.30134541,187.27,187.24,2.8]
[1761967215971,4.30134541,187.27,187.25,4.15478439]
[1761967216284,4.30134541,187.27,187.26,4.15478439]
[1761967216479,2.87,187.29,187.26,4.15478439]
[1761967216685,4.30134541,187.28,187.25,2.78]
[1761967216884,4.30134541,187.27,187.26,4.15351995]
[1761967217080,4.30134541,187.28,187.26,4.15351995]
[1761967217281,4.30134541,187.27,187.25,2.78]
[1761967217476,2.87,187.29,187.26,4.15372607]
[1761967217776,4.30494432,187.28,187.25,2.78]
[1761967217972,4.30494432,187.27,187.26,4.15372746]
[1761967218173,2.87,187.29,187.26,4.15372746]
[1761967218374,7.17485522,187.28,187.27,4.15372746]
[1761967219684,7.17485522,187.28,187.25,2.78]
[1761967219981,4.30485522,187.27,187.26,6.9635839]
[1761967220176,7.20485522,187.3,187.26,6.9635839]
[1761967220383,7.20485522,187.29,187.27,4.1535839]
[1761967220586,7.20485522,187.29,187.23,2.81]
[1761967220587,4.30485522,187.28,187.23,2.81]
[1761967220787,4.30485522,187.28,187.25,2.81]
[1761967220987,4.30485522,187.28,187.26,4.15392395]
[1761967221286,4.30485522,187.28,187.27,4.15392395]
[1761967224688,7.20485522,187.28,187.27,4.15392395]
[1761967225094,2.9,187.27,187.23,4.15631032]
[1761967225294,4.30485522,187.26,187.2,2.81]
[1761967225591,7.5670961,187.31,187.21,6.9658279]
[1761967225592,7.20485522,187.25,187.21,6.9658279]
[1761967225793,4.30485522,187.24,187.22,4.1558279]
[1761967226000,2.9,187.23,187.18,4.86420763]
[1761967226194,2.9,187.21,187.19,4.15780659]
[1761967226492,2.9,187.21,187.17,4.86420763]
[1761967226493,2.9,187.21,187.2,4.15780659]
[1761967226998,2.9,187.25,187.2,4.15780659]
[1761967227191,2.9,187.23,187.21,4.15780659]
[1761967227392,4.30469319,187.22,187.18,2.81]
[1761967227591,4.30469319,187.22,187.19,4.15448967]
[1761967227791,4.30469319,187.22,187.2,4.15448967]
[1761967227994,4.30469319,187.22,187.21,4.15448967]
[1761967228296,7.20469319,187.22,187.21,4.15448967]
[1761967228596,4.30469319,187.22,187.21,6.96448967]
[1761967228794,4.30469319,187.23,187.21,6.96448967]
[1761967228997,4.30469319,187.22,187.21,2.81]
[1761967229297,2.9,187.25,187.21,6.96322781]
[1761967229503,4.3026309,187.24,187.22,4.15322781]
[1761967229693,4.3026309,187.24,187.21,2.81]
[1761967229889,7.2026309,187.24,187.22,4.1522554]
[1761967230191,4.3026309,187.23,187.21,2.81]
[1761967230391,2.9,187.24,187.22,4.15271465]
[1761967230586,2.9,187.24,187.21,2.81]
[1761967230792,2.9,187.28,187.22,4.15235325]
[1761967231097,2.9,187.26,187.22,2.81]
[1761967231296,4.30258336,187.25,187.22,2.81]
[1761967232001,7.20258336,187.25,187.22,2.81]
[1761967232195,4.30258336,187.24,187.23,4.15405319]
[1761967233003,7.20258336,187.24,187.23,4.15405319]
[1761967236604,4.30258336,187.24,187.23,6.96405319]
[1761967236908,2.9,187.31,187.24,2.81]
[1761967237111,2.9,187.31,187.25,4.15405319]
[1761967237312,2.9,187.31,187.27,2.81]
[1761967240214,2.9,187.31,187.28,4.17071691]
[1761967240415,2.9,187.31,187.27,2.81]
[1761967240617,2.9,187.31,187.28,4.1707053]
[1761967240913,2.9,187.31,187.27,2.81]
[1761967241114,2.9,187.31,187.28,4.17070271]
[1761967241314,2.9,187.31,187.27,2.81]
[1761967241512,2.9,187.31,187.28,4.17182608]
[1761967241715,2.9,187.31,187.27,2.81]
[1761967241911,2.9,187.31,187.28,4.17182887]
[1761967242112,2.9,187.31,187.27,2.81]
[1761967242314,2.9,187.31,187.28,4.17182747]
[1761967242514,2.9,187.31,187.27,2.81]
[1761967242714,2.9,187.31,187.28,4.17259266]
[1761967242915,2.9,187.31,187.27,2.81]
[1761967243114,2.9,187.31,187.28,4.17236866]
[1761967243417,2.9,187.31,187.27,2.81]
[1761967243606,2.9,187.31,187.28,4.17290136]
[1761967243808,2.9,187.31,187.27,2.81]
[1761967244005,2.9,187.31,187.28,4.17290275]
[1761967244218,2.9,187.31,187.27,2.81]
[1761967244413,2.9,187.31,187.28,4.17347025]
[1761967244613,2.9,187.31,187.27,2.81]
[1761967244811,2.9,187.31,187.28,4.17346886]
[1761967245011,2.9,187.31,187.27,2.81]
[1761967245211,2.9,187.31,187.28,4.17330055]
[1761967245519,2.9,187.31,187.27,2.81]
[1761967245720,2.9,187.31,187.28,4.17363019]
[1761967246019,2.9,187.31,187.27,2.81]
[1761967246214,2.9,187.31,187.28,4.17363347]
[1761967246425,2.9,187.31,187.29,6.98363347]
[1761967246626,2.9,187.31,187.3,4.17363347]
[1761967246828,2.66,187.37,187.3,4.17363347]
[1761967247008,2.66,187.37,187.31,4.17363347]
[1761967247318,2.66,187.37,187.32,4.17286001]
[1761967247519,2.66,187.37,187.29,2.81]
[1761967247717,2.66,187.37,187.31,2.81]
[1761967247918,2.66,187.37,187.32,6.98307215]
[1761967248119,2.66,187.37,187.33,4.17307215]
[1761967248418,2.66,187.37,187.32,2.81]
[1761967248618,2.66,187.37,187.33,4.17747866]
[1761967248820,2.66,187.35,187.29,2.81]
[1761967249018,4.22716394,187.34,187.31,2.81]
[1761967249211,2.66,187.35,187.32,4.17734935]
[1761967249212,4.22716394,187.33,187.32,4.17734935]
[1761967253221,6.88716394,187.33,187.32,4.17734935]
[1761967255327,6.88716394,187.33,187.32,3.40845578]
[1761967255522,2.66,187.32,187.25,7.67420763]
[1761967255717,6.88716394,187.31,187.25,7.67420763]
[1761967255923,6.88716394,187.3,187.26,2.81]
[1761967256219,4.22716394,187.29,187.26,2.81]
[1761967256422,4.22716394,187.28,187.26,2.81]
[1761967256630,4.22716394,187.27,187.26,2.81]
[1761967257125,4.22716394,187.27,187.25,4.86420763]
[1761967257326,2.66,187.3,187.25,4.86420763]
[1761967257526,2.66,187.28,187.24,4.86420763]
[1761967257727,4.22446448,187.27,187.25,2.81]
[1761967257922,4.22446448,187.26,187.25,2.81]
[1761967260230,4.22446448,187.26,187.24,4.86420763]
[1761967260425,2.66,187.3,187.25,2.81]
[1761967260627,2.66,187.28,187.25,2.81]
[1761967260826,4.22448541,187.27,187.25,2.81]
[1761967261026,4.22448541,187.26,187.25,2.81]
[1761967261229,4.22448541,187.27,187.25,2.81]
[1761967261422,4.22448541,187.26,187.24,4.86420763]
[1761967261723,0.92948718,187.41,187.21,6.48561017]
[1761967261724,2.66,187.24,187.21,4.86420763]
[1761967261923,2.66,187.22,187.18,7.67420763]
[1761967262130,6.88448541,187.21,187.18,2.81]
[1761967262428,4.22448541,187.2,187.18,2.81]
[1761967262627,4.22448541,187.19,187.18,2.81]
[1761967263229,2.66,187.21,187.18,2.81]
[1761967263429,4.22400694,187.2,187.18,2.81]
[1761967263933,6.88400694,187.2,187.17,4.86420763]
[1761967264133,2.66,187.2,187.17,7.67420763]
[1761967264536,2.66,187.24,187.17,7.67420763]
[1761967264729,4.22324138,187.23,187.17,7.67420763]
[1761967265037,6.88324138,187.22,187.18,7.67420763]
[1761967265335,4.22324138,187.21,187.19,2.81]
[1761967266235,1.80716885,187.25,187.19,2.81]
[1761967266236,2.66,187.24,187.19,2.81]
[1761967266426,4.22212011,187.23,187.19,2.81]
[1761967266626,2.66,187.24,187.19,2.81]
[1761967266627,4.22212011,187.22,187.19,2.81]
[1761967266933,4.22212011,187.21,187.19,2.81]
[1761967267132,2.66,187.23,187.19,2.81]
[1761967267433,6.88172741,187.22,187.2,4.15741761]
[1761967267633,2.66,187.22,187.21,4.15741761]
[1761967267932,6.88172781,187.22,187.21,4.15741761]
[1761967269840,8.68889666,187.22,187.21,4.15741761]
[1761967270140,2.66,187.21,187.14,2.81]
[1761967270336,2.66,187.19,187.14,2.81]
[1761967270537,2.66,187.17,187.14,2.81]
[1761967271438,2.66,187.17,187.13,4.86420763]
[1761967271635,2.66,187.14,187.09,4.86420763]
[1761967271843,2.66,187.11,187.07,4.86420763]
[1761967272148,2.66,187.11,187.07,2.81]
[1761967272833,2.66,187.11,187.06,3.73948718]
[1761967273237,2.66,187.11,187.06,2.81]
[1761967279843,2.76,187.08,186.99,9.69198681]
[1761967280144,2.76,187.04,186.99,9.69198681]
[1761967280840,2.76,187.04,187.0,2.76]
[1761967281235,2.76,187.07,187.0,2.76]
[1761967291249,2.76,187.1,187.0,2.76]
[1761967291450,2.76,187.1,187.01,2.76]
[1761967292459,1.80716885,187.09,187.01,2.76]
[1761967292654,2.76,187.05,186.99,9.69198681]
[1761967294756,2.76,187.05,186.99,12.45198681]
[1761967295253,2.76,187.05,187.0,2.76]
[1761967295459,2.76,187.08,187.0,2.76]
[1761967296359,2.76,187.08,187.01,2.76]
[1761967298260,2.76,187.08,187.02,2.76]
[1761967299562,2.76,187.21,187.02,2.76]
[1761967299755,2.76,187.13,187.03,2.76]
[1761967299955,6.94456817,187.12,187.03,2.76]
[1761967300157,2.76,187.11,187.03,2.76]
[1761967300662,4.56716885,187.11,187.03,2.76]
[1761967300858,2.76,187.21,187.07,4.8136]
[1761967301157,2.76,187.19,187.08,2.76]
[1761967301557,4.56716885,187.17,187.08,2.76]
[1761967301761,25.8623759,187.28,187.08,2.76]
[1761967301762,2.76,187.13,187.08,2.76]
[1761967301964,4.56716885,187.16,187.08,2.76]
[1761967302264,2.76,187.16,187.08,2.76]
[1761967303263,2.76,187.19,187.08,2.76]
[1761967303462,6.95351323,187.18,187.08,2.76]
[1761967303768,6.95338643,187.17,187.08,2.76]
[1761967303967,2.76,187.17,187.08,2.76]
[1761967306167,4.19674032,187.16,187.08,2.76]
[1761967308871,6.88674032,187.16,187.08,2.76]
[1761967309067,2.69,187.16,187.08,2.76]
[1761967309767,2.69,187.22,187.08,2.76]
[1761967309969,4.20318579,187.21,187.14,2.7]
[1761967310166,2.69,187.22,187.14,2.7]
[1761967310367,6.89250648,187.21,187.14,2.7]
[1761967310674,4.20262166,187.2,187.14,2.7]
[1761967310970,2.69,187.21,187.14,2.7]
[1761967311166,4.20332189,187.2,187.14,2.7]
[1761967311360,2.69,187.21,187.14,2.7]
[1761967312261,4.20401655,187.2,187.14,2.7]
[1761967312459,2.69,187.19,187.14,2.7]
[1761967313164,4.20542982,187.18,187.14,2.7]
[1761967313374,2.69,187.18,187.14,2.7]
[1761967314174,2.69,187.16,187.1,2.7]
[1761967315875,2.82805038,187.21,187.1,2.7]